{"text_format":"1","workbook":"xlsx","n_sheets":1,"sheets":["conceptos"],"not_rendered":{"charts":0,"images":2,"macros":1,"external_links":0,"defined_names":1,"comments":0,"pivot_tables":0},"unopened":[],"bounds":{"document_bytes":16777216,"sheet_cells":100000,"rows_first":2000,"rows_last":500,"rows_between":2000,"halvings":0,"cell_chars":16384,"cell_head_chars":4096},"cells_cut":0,"cells_raw":0,"read":"whole","date_system":"1900"}

{"sheet":"conceptos","index":0,"n_rows":95,"n_cols":8,"rows_kept":95,"cut":false,"hidden":false,"merged":[[92,0,92,4],[93,0,94,4],[13,0,13,6],[0,2,0,5],[9,2,9,5],[1,2,3,5],[4,2,4,3],[6,2,6,3],[7,2,7,3],[4,4,4,5],[5,4,5,5],[6,4,6,5],[7,4,7,5],[10,2,10,5],[11,2,11,5],[5,1,8,1]]}
[null,"GOBIERNO DEL ESTADO DE JALISCO","LICITACIÓN PÚBLICA ESTATAL"]
[null,"INSTITUTO DE LA INFRAESTRUCTURA FÍSICA EDUCATIVA DEL","INFEJAL-E-REM-M-CON-05780-LP-0232-2020"]
[null,"ESTADO DE JALISCO"]
[]
[null,"DESCRIPCIÓN GENERAL DE LOS TRABAJOS:","FECHA DE INICIO:"]
[null,null,null,"FECHA DE TERMINACIÓN:"]
[null,null,"PLAZO DE EJECUCIÓN:"]
[null,null,"FECHA:"]
[]
[null,"RAZÓN SOCIAL DEL LICITANTE:","NOMBRE, CARGO Y FIRMA DEL LICITANTE:",null,null,null,"DOCUMENTO"]
[]
[]
[]
["PRESUPUESTO DE OBRA"]
[]
["CLAVE","DESCRIPCIÓN","UNIDAD","CANTIDAD","PRECIO UNITARIO ($)","PRECIO UNITARIO ($) CON LETRA","IMPORTE ($) M.N."]
["TRABAJO : MSUP-CON-05780","CONSTRUCCIÓN DE LÍNEA DE MEDIA TENSIÓN, SUBESTACIÓN ELÉCTRICA E INSTALACIONES HIDRÁULICAS EN EDIFICIO “C” Y EN OBRA EXTERIOR EN LA ESCUELA PREPARATORIA REGIONAL DE SAYULA CCT 14UBH0021T, UBICADA EN LA CABECERA MUNICIPAL DE SAYULA, JALISCO.",null,null,null,null,{"$f":"TEXT(SUM(G18 + G25 + G58), \"$ #,##0.00 ;\")","v":"$ 0.00 "}]
["C","EDIFICIO C",null,null,null,null,{"$f":"TEXT(SUM(G19 + G21 + G23), \"$ #,##0.00 ;\")","v":"$ 0.00 "}]
["C.01(410)","CANCELERIA, HERRERIA, ALUMINIO, VIDRIOS Y CHAPAS  ",null,null,null,null,{"$f":"TEXT(SUM(G20:G20), \"$ #,##0.00 ;\")","v":"$ 0.00 "}]
[910737,"SUMINISTRO E INSTALACION DE REJILLA MARCA IRVING R-6 DE 1\" X 1/8\" DE 90 X 90 CM., INCLUYE: CONTRAMARCO DE ANGULO DE 1 1/8\" X 1 1/8\" X 1/8\" ANCLADO A PISO, PINTURA ANTICORROSIVA, CORTES, DESPERDICIOS, ACARREOS, ELEVACIONES, MATERIALES NECESARIOS PARA SU INSTALACION, MANO DE OBRA, HERRAMIENTA MENOR Y EQUIPO.","PZA","1.0000",0,"CERO PESOS 00/100 M.N.",0,334765]
["C.02(564)","INSTALACION HIDRAULICA, SANITARIA Y GAS EN EDIF.  ",null,null,null,null,{"$f":"TEXT(SUM(G22:G22), \"$ #,##0.00 ;\")","v":"$ 0.00 "}]
[976071,"SUMINISTRO Y COLOCACION DE TUBERIA HIDRAULICA DE CPVC-CTS, ROSCADA DE 38 MM., DE DIAMETRO, INCLUYE: TRAZO, CORTES,  ROSCADO, HERRAMIENTA, SELLADORES, MATERIALES MENORES, FLETE, ACARREOS, PRUEBAS,  Y MANO DE OBRA.","ML ","20.0000",0,"CERO PESOS 00/100 M.N.",0,334766]
["C.03(590)","MUEBLES DE BAÑO Y COCINA                          ",null,null,null,null,{"$f":"TEXT(SUM(G24:G24), \"$ #,##0.00 ;\")","v":"$ 0.00 "}]
[976028,"SUMINISTRO E INSTALACION DE REGADERA DE EMERGENCIA Y LAVAOJOS MARCA MUNDO DE LA SEGURIDAD MODELO MSI-ROG/F4 FABRICADA CON TUBERIA DE 1 1/4\" DE ACERO GALVANIZADO CEDULA 40 RESISTENCIA DE HASTA DE 11 KGS DE PRESION. SISTEMA DE ROCIADO FACIAL  DE 4 ESFERAS DE ACERO INOXIDABLE CON ESFERAS SOLDADAS PARA EVITAR RAPIÑA, CHAROLA Y CAMPANA DE ACERO INOXIDABLESPOR UNIDAD DE OBRA TERMINADA. INCLUYE : CADENA, REGADERA, LAVAOJOS,CONECTORES NECESARIOS, PRUEBAS, MATERIALES NECESARIOS PARA SU INSTALACION, ACARREO DE MATERIALES, HERRAMIENTA Y MANO DE OBRA.","PZA","1.0000",0,"CERO PESOS 00/100 M.N.",0,334767]
["02","RED ELECTRICA",null,null,null,null,{"$f":"TEXT((G26), \"$ #,##0.00 ;\")","v":"$ 0.00 "}]
["02.01(511)","INSTALACION ELECTRICA EN OBRA EXTERIOR            ",null,null,null,null,{"$f":"TEXT(SUM(G27:G57), \"$ #,##0.00 ;\")","v":"$ 0.00 "}]
[152204,"EXCAVACION EN CEPAS POR CUALQUIER MEDIO, MATERIAL TIPO \"B\", DE 0 A 2.00 M. DE PROFUNDIDAD, EN SECO, INCLUYE: AFINE DE TALUDES Y FONDO, TRASPALEOS,  MOVIMIENTOS Y ACARREOS DENTRO DE LA OBRA, HERRAMIENTAS Y MANO DE OBRA, MEDIDO EN BANCO.","M3 ","35.0000",0,"CERO PESOS 00/100 M.N.",0,334768]
[518211,"SUMINISTRO Y COLOCACION DE CONDULET LB, LF, T, TB O LR, DE 2\" DE DIAM., OVALADO, MARCA C. HINDS, INCLUYE: TAPA Y EMPAQUE DE NEOPRENO, SOPORTE, FIJACION, ALINEACION, MATERIALES MENORES, MANO DE OBRA ESPECIALIZADA, HERRAMIENTA, PRUEBAS, FLETES Y ACARREO DE LOS MATERIALES AL SITIO DE SU UTILIZACION.","PZA","2.0000",0,"CERO PESOS 00/100 M.N.",0,334769]
[518217,"SUMINISTRO Y COLOCACION DE CONDULET LB O LR, DE 2 1/2\" DE DIAM., OVALADO, MARCA C. HINDS, INCLUYE: MANO DE OBRA, HERRAMIENTA, MATERIALES MENORES, PRUEBAS Y ACARREO DE MATERIALES HASTA EL SITIO DE SU COLOCACION.","PZA","2.0000",0,"CERO PESOS 00/100 M.N.",0,334770]
[530123,"SUMINISTRO Y COLOCACION DE CURVA CONDUIT GALVANIZADO PARED GRUESA, ROSCABLE, DE 51 MM DE DIAM. INCLUYE: CONEXIONES, DESPERDICIOS, ROSCADO, MATERIALES MENORES, PRUEBAS Y ACARREO DE MATERIALES AL SITIO DE SU COLOCACION.","PZA","2.0000",0,"CERO PESOS 00/100 M.N.",0,334771]
[530124,"SUMINISTRO Y COLOCACION DE CURVA CONDUIT GALVANIZADO PARED GRUESA, ROSCABLE, DE 64 MM DE DIAM. INCLUYE: CONEXIONES, DESPERDICIOS, ROSCADO, MATERIALES MENORES, PRUEBAS Y ACARREO DE MATERIALES AL SITIO DE SU COLOCACION.","PZA","2.0000",0,"CERO PESOS 00/100 M.N.",0,334772]
[534012,"SUMINISTRO Y TENDIDO DE TUBO CONDUIT DE P.V.C. PESADO, DE 50 MM DIAM. INC.: CONEXIONES, TRAZO, EXCAVACION, RELLENO, DESPERDICIOS, MATERIALES MENORES, PRUEBAS Y ACARREO AL SITIO DE SU COLOCACION.","ML ","110.0000",0,"CERO PESOS 00/100 M.N.",0,334773]
[534016,"SUMINISTRO Y TENDIDO DE TUBO CONDUIT DE P.V.C. PESADO, DE 75 MM DIAM. INC.: CONEXIONES, TRAZO, EXCAVACION, RELLENO, DESPERDICIOS, MATERIALES MENORES, PRUEBAS Y ACARREO AL SITIO DE SU COLOCACION.","ML ","3.0000",0,"CERO PESOS 00/100 M.N.",0,334774]
[534048,"SUMINISTRO Y TENDIDO DE TUBO CONDUIT DE P.V.C. PESADO, DE 50 MM DIAM. INCLUYE: CONEXIONES, TRAZO, CORTES, AJUSTES, DESPERDICIOS, MATERIALES MENORES, PRUEBAS, HERRAMIENTAS, LIMPIEZA, MANO DE OBRA Y ACARREO AL SITIO DE SU COLOCACION. A CUALQUIER NIVEL.","ML ","130.0000",0,"CERO PESOS 00/100 M.N.",0,334775]
[534055,"SUMINISTRO Y TENDIDO DE TUBO CONDUIT DE P.V.C. PESADO, DE 64 MM DIAM. INCLUYE: CONEXIONES, TRAZO, CORTES, AJUSTES, DESPERDICIOS, MATERIALES MENORES, PRUEBAS, HERRAMIENTAS, LIMPIEZA, MANO DE OBRA Y ACARREO AL SITIO DE SU COLOCACION. A CUALQUIER NIVEL.","ML ","90.0000",0,"CERO PESOS 00/100 M.N.",0,334776]
[534112,"SUMINISTRO Y COLOCACION DE TUBO CONDUIT GALVANIZADO, DE 51 MM, PARED GRUESA ROSCADA ETIQUETA AMARILLA, INCLUYE: TRAZO, CORTES, AJUSTES, CONECTORES, COPLES, DOBLECES, ROSCADO, DESPERDICIOS, MATERIALES MENORES, HERRAMIENTAS, PRUEBAS, LIMPIEZA, MANO DE OBRA Y ACARREO DE MATERIALES AL SITIO DE SU COLOCACION.","ML ","40.0000",0,"CERO PESOS 00/100 M.N.",0,334777]
[534113,"SUMINISTRO Y COLOCACION DE TUBO CONDUIT GALVANIZADO, DE 64 MM, PARED GRUESA ROSCADA ETIQUETA AMARILLA, INCLUYE: TRAZO, CORTES, AJUSTES, CONECTORES, COPLES, DOBLECES, ROSCADO, DESPERDICIOS, MATERIALES MENORES, HERRAMIENTAS, PRUEBAS, LIMPIEZA, MANO DE OBRA Y ACARREO DE MATERIALES AL SITIO DE SU COLOCACION.","ML ","40.0000",0,"CERO PESOS 00/100 M.N.",0,334778]
[534122,"SUMINISTRO Y COLOCACION DE TUBO CONDUIT GALVANIZADO, DE 19 MM, PARED DELGADA DE AJUSTE ETIQUETA VERDE, INCLUYE: TRAZO, CORTES, AJUSTES, CONECTORES, COPLES, CURVAS, DOBLECES, DESPERDICIOS, MATERIALES MENORES, HERRAMIENTAS, PRUEBAS, LIMPIEZA, MANO DE OBRA Y ACARREO DE MATERIALES AL SITIO DE SU COLOCACION.","ML ","1.5000",0,"CERO PESOS 00/100 M.N.",0,334779]
[536012,"SUMINISTRO Y COLOCACION DE CABLE VINANEL THW-LS 600 V. A 75° C, 90° C, MARCA CONDUCTORES MONTERREY, (VIAKON-PROTOCOLIZADO), CABLE VINANEL 21 THW-LS 600 V. A 75° C, 90° C, MARCA CONDUMEX (CONDUMEX PROTOCOLIZADO). CAL. 6,  INCLUYE: DESPERDICIOS, MATERIALES MENORES, HERRAMIENTA, CONEXIONES, MANO DE OBRA ESPECIALIZADA, LIMPIEZA DEL AREA DE TRABAJO, PRUEBAS Y ACARREO AL SITIO DE SU COLOCACION.","ML ","120.0000",0,"CERO PESOS 00/100 M.N.",0,334780]
[536014,"SUMINISTRO Y COLOCACION DE CABLE VINANEL THW-LS 600 V. A 75° C, 90° C, MARCA CONDUCTORES MONTERREY, (VIAKON-PROTOCOLIZADO), CABLE VINANEL 21 THW-LS 600 V. A 75° C, 90° C, MARCA CONDUMEX (CONDUMEX PROTOCOLIZADO). CAL. 4,  INCLUYE: DESPERDICIOS, MATERIALES MENORES, HERRAMIENTA, CONEXIONES, MANO DE OBRA ESPECIALIZADA, LIMPIEZA DEL AREA DE TRABAJO, PRUEBAS Y ACARREO AL SITIO DE SU COLOCACION.","ML ","110.0000",0,"CERO PESOS 00/100 M.N.",0,334781]
[536016,"SUMINISTRO Y COLOCACION DE CABLE VINANEL THW-LS 600 V. A 75° C, 90° C, MARCA CONDUCTORES MONTERREY, (VIAKON-PROTOCOLIZADO), CABLE VINANEL 21 THW-LS 600 V. A 75° C, 90° C, MARCA CONDUMEX (CONDUMEX PROTOCOLIZADO). CAL. 2,  INCLUYE: DESPERDICIOS, MATERIALES MENORES, HERRAMIENTA, CONEXIONES, MANO DE OBRA ESPECIALIZADA, LIMPIEZA DEL AREA DE TRABAJO, PRUEBAS Y ACARREO AL SITIO DE SU COLOCACION.","ML ","10.0000",0,"CERO PESOS 00/100 M.N.",0,334782]
[536024,"SUMINISTRO Y COLOCACION DE CABLE VINANEL THW-LS 600 V. A 75° C, 90° C, MARCA CONDUCTORES MONTERREY, (VIAKON-PROTOCOLIZADO), CABLE VINANEL 21 THW-LS 600 V. A 75° C, 90° C, MARCA CONDUMEX (CONDUMEX PROTOCOLIZADO). CAL. 4/0,  INCLUYE: DESPERDICIOS, MATERIALES MENORES, HERRAMIENTA, CONEXIONES, MANO DE OBRA ESPECIALIZADA, LIMPIEZA DEL AREA DE TRABAJO, PRUEBAS Y ACARREO AL SITIO DE SU COLOCACION.","ML ","20.0000",0,"CERO PESOS 00/100 M.N.",0,334783]
[536192,"SUMINISTRO Y COLOCACION DE UNICANAL DE 4 X 4 PARA SOPORTERIA DE TUBO CONDUIT, INCLUYE: MATERIALES MENORES, PRUEBAS Y ACARREO DE MATERIAL AL SITIO DE SU INSTALACION.","ML ","4.8000",0,"CERO PESOS 00/100 M.N.",0,334784]
[537101,"SUMINISTRO Y COLOCACION DE CABLE DE COBRE DESNUDO CAL. 1/0, AWG, MCA. CONDUMEX, CONELEC O CONDUCTORES MONTERREY. INCLUYE: DESPERDICIOS, MATERIALES MENORES, PRUEBAS Y ACARREO AL SITIO DE SU COLOCACION.","ML ","3.0000",0,"CERO PESOS 00/100 M.N.",0,334785]
[542539,"SUMINISTRO Y COLOCACION DE TABLERO DE DISTRIBUCION MAS NBAR 1250, MARCA BITICINO, CAT. BP1M025C10D, INCLUYE: INTERRUPTOR PRINCIPAL MEGATIKER 3 POLOS, 250 AMP, CONEXIONES, CONECTORES, PRUEBAS, SOPORTERIA, IDENTIFICACION DE CIRCUITOS EN TAPA DE TABLERO, MATERIALES MENORES, EQUIPOS, HERRAMIENTAS, SUPERVISION Y MANO DE OBRA.","PZA","1.0000",0,"CERO PESOS 00/100 M.N.",0,334786]
[543742,"SUMINISTRO E INSTALACION DE INTERRUPTOR TERMOMAGNETICO  MCA. BTICINO, LINEA MEGATIKER, CAT.  T713E80. DE 3 X 80 AMPERS.  INCLUYE:  MATERIALES MENORES,  HERRAMIENTA,  CONEXIONES,  MANO DE OBRA ESPECIALIZADA, LIMPIEZA  DEL  AREA DE TRABAJO, PRUEBAS Y ACARREO AL SITIO DE SU COLOCACION.","PZA","2.0000",0,"CERO PESOS 00/100 M.N.",0,334787]
[558126,"SUMINISTRO E INSTALACION DE BASE SOCKET DE MEDICION TIPO 7 X 200 AMP  INCLUYE: CONEXION, PRUEBAS, MATERIALES MENORES Y DE FIJACION, HERRAMIENTAS, MANO DE OBRA Y ACARREOS.","PZA","1.0000",0,"CERO PESOS 00/100 M.N.",0,334788]
[558521,"SUMINISTRO Y COLOCACION DE VARILLA DE TIERRA COOPERWELD, DE 3.00 M X 16 MM DE DIAM.  INCLUYE:  1 CARGA CADWELD No. 90. 3 MTS DE CABLE DE COBRE DESNUDO SEMIDURO CAL. 2 AWG. PARTE PROPORCIONAL DE MOLDE 161V.   MATERIALES MENORES, HERRAMIENTAS, MANO DE OBRA,  PRUEBAS Y ACARREO AL SITIO DE SU COLOCACION.","PZA","1.0000",0,"CERO PESOS 00/100 M.N.",0,334789]
[880416,"SUMINISTRO Y COLOCACION DE CABLE DE  ALUMINIO STABILOY TIPO \"XHHW-2-LS\"  CALIBRE 1/0 AWG.  INCLUYE: FLETE, CONEXIONES, MATERIALES NECESARIOS PARA SU INSTALACION, HERRAMIENTAS, EQUIPO DE SEGURIDAD, DESPERDICIOS  Y MANO DE OBRA, A CUALQUIER NIVEL.","ML ","250.0000",0,"CERO PESOS 00/100 M.N.",0,334790]
[880612,"SUMINISTRO Y COLOCACION DE REGISTRO ELECTRICO DE CONCRETO, PREFABRICADO, PARA BAJA TENSION TIPO 2 NORMA C.F.E.- RBTB-2 DE 66 X 100 X 65 CM., CON TAPA DE CONCRETO,  MARCO Y CONTRAMARCO  DE ACERO GALVANIZADO, INCLUYE: TRAZO, EXCAVACION, RELLENOS COMPACTADOS, FILTRO DE GRAVA, RESANADO FINO DE TUBERIAS EN SU INTERIOR, HERRAMIENTAS, MANO DE OBRA, FLETES, ACARREO AL SITIO DE SU COLOCACION Y LIMPIEZA DEL AREA DE TRABAJO.","PZA","2.0000",0,"CERO PESOS 00/100 M.N.",0,334791]
[880621,"SUMINISTRO Y COLOCACION DE REGISTRO ELECTRICO DE CONCRETO, PREFABRICADO, PARA BAJA TENSION TIPO 1 NORMA C.F.E.- RBTB-1 DE 50 X 80 X 65 CM., CON TAPA DE CONCRETO,  MARCO Y CONTRAMARCO  DE ACERO GALVANIZADO, INCLUYE: TRAZO, EXCAVACION, RELLENOS COMPACTADOS, FILTRO DE GRAVA, RESANADO FINO DE TUBERIAS EN SU INTERIOR, HERRAMIENTAS, MANO DE OBRA, FLETES, ACARREO AL SITIO DE SU COLOCACION Y LIMPIEZA DEL AREA DE TRABAJO.","PZA","2.0000",0,"CERO PESOS 00/100 M.N.",0,334792]
[906645,"SUMINISTRO Y COLOCACION DE VARILLA ROSCADA GALVANIZADA DE 1/4\" DE DIAMETRO. INCLUYE:  MATERIALES MENORES Y DE FIJACION, COPLES, TUERCAS, RONDANAS, DESPERDICIOS, HERRAMIENTAS, EQUIPO, MANO DE OBRA Y ACARREOS.","ML ","36.0000",0,"CERO PESOS 00/100 M.N.",0,334793]
[910189,"SUMINISTRO E INSTALACION DE CABLE DE ALUMINIO CON AISLAMIENTO, ALCAN  XHHW-2, CAL. 4/0, PARA DISTRUBUCION SUBTERRANEA,  90 °C, 600 V,  MARCA STABILOY,  INCLUYE: FLETE, ELEVACION, CONEXIONES, MATERIALES MENORES Y DE CONSUMO, HERRAMIENTAS, EQUIPO DE SEGURIDAD, DESPERDICIOS, LIMPIEZA DEL AREA DE TRABAJO, PRUEBAS, Y MANO DE OBRA,  EN CUALQUIER NIVEL.","ML ","200.0000",0,"CERO PESOS 00/100 M.N.",0,334794]
[915539,"SUMINISTRO Y COLOCACION DE GABINETE DE MEDICION DE 100 X 60 X 40 CM. INCLUYE: MATERIALES MENORES Y DE CONSUMO, ELEMENTOS DE FIJACION, NIVELACION, HERRAMIENTAS, LIMPIEZA DEL AREA DE TRABAJO, MANO DE OBRA Y ACARREOS.","PZA","1.0000",0,"CERO PESOS 00/100 M.N.",0,334795]
[919809,"SUMINISTRO E INSTALACION DE MEDIDOR MULTIFUNCIONAL MAC. ELESTER SOLUTION LLC, TIPO A3 SLPHA, MEDICION DE KWH. KW Y KVR EN HASTA 4 TARIFAS HORARIAS, MEDICION DE VOLTAJE INSTANTANEO, PANTALLA LCD DE HASTA 6 DIGITOS, FORMA 9S, (3F-4H-3E, 120-480 V, 2.5 (20) AMP 60 HZ CLASE DE PRESICION 0.2% BASE TIPO SOKET, CON PUERTO OPTICO ADSI II EN EL PANEL FRONTAL, CUMPLE CON ESPECIFICACIONES CFE G000-48-2010, VIGENTE INCLUYE: MATERIALES MENORES Y DE CONSUMO, HERRAJES, HERRAMIENTAS, MANO DE OBRA, LIMPIEZAS Y ACARREOS","PZA","1.0000",0,"CERO PESOS 00/100 M.N.",0,334796]
[930532,"ENCOFRADO DE TUBERIAS ELECTRICAS, HIDRAULICAS Y/O SANITARIAS DE DIFERENTES DIAMETROS CON CONCRETO SIMPLE HECHO EN OBRA F´C=100 KG/CM2, INCLUYE: MATERIALES, HERRAMIENTAS, DESPERDICIOS, LIMPIEZAS, ACARREOS Y MANO DE OBRA.","M3 ","8.0000",0,"CERO PESOS 00/100 M.N.",0,334797]
[972821,"SUMINISTRO Y COLOCACION DE INTERRUPTOR TERMOMAGNETICO MEGATIKER DERIVADO MARCO M1 160N CON 3 POLOS, DE 125 AMPERES, MCA. BTICINO, CAT. T713N125, INCLUYE: PRUEBAS, MATERIALES MENORES Y ACARREOS.","PZA","2.0000",0,"CERO PESOS 00/100 M.N.",0,334798]
[19,"SUBESTACION",null,null,null,null,{"$f":"TEXT((G59), \"$ #,##0.00 ;\")","v":"$ 0.00 "}]
["19.01(520)","SUBESTACION, GENERADORES Y CELDAS SOLARES.        ",null,null,null,null,{"$f":"TEXT(SUM(G60:G81), \"$ #,##0.00 ;\")","v":"$ 0.00 "}]
[152204,"EXCAVACION EN CEPAS POR CUALQUIER MEDIO, MATERIAL TIPO \"B\", DE 0 A 2.00 M. DE PROFUNDIDAD, EN SECO, INCLUYE: AFINE DE TALUDES Y FONDO, TRASPALEOS,  MOVIMIENTOS Y ACARREOS DENTRO DE LA OBRA, HERRAMIENTAS Y MANO DE OBRA, MEDIDO EN BANCO.","M3 ","3.0000",0,"CERO PESOS 00/100 M.N.",0,334799]
[180154,"RELLENO CON MATERIAL DE BANCO, COMPACTADO AL 95% PROCTOR, EN CAPAS DE 15 CM. DE ESPESOR, AGREGANDO AGUA PARA LOGRAR SU HUMEDAD OPTIMA, POR CUALQUIER MEDIO, MEDIDO COMPACTO. INCLUYE: SUMINISTRO DE MATERIAL, PRUEBAS DE COMPACTACION, TRASPALEOS, HERRAMIENTAS, MANO DE OBRA Y  ACARREOS AL SITIO DE SU COLOCACION.","M3 ","1.0000",0,"CERO PESOS 00/100 M.N.",0,334800]
[382053,"BASE DE CONCRETO F'C=150 KG/CM, DE 15 CM DE ALTURA., ARMADA CON  VARILLAS DE 3/8\"@20 CM. EN AMBOS SENTIDOS, PARA COLOCACION DE EQUIPOS DE EN GENERAL,  ACABADO APALILLADO, INCLUYE: MATERIALES, COLADO, VIBRADO, CURADO, CIMBRA Y DESCIMBRA, NIVELACION,  DESPERDICIOS, REMATES,  HERRAMIENTAS, LIMPIEZA, MANO DE OBRA  Y ACARREO DE MATERIAL AL SITIO DE SU UTILIZACION, A CUALQUIER NIVEL.","M2 ","2.0000",0,"CERO PESOS 00/100 M.N.",0,334801]
[880019,"SUMINISTRO Y COLOCACION DE TRANSFORMADOR TRIFASICO TIPO SUBESTACION (PEDESTAL) PARA JARDIN, DE 75 KVA, NORMA NMX-J-285-ANCE,  AUTOENFRIADO EN ACEITE, PARA 23000 VOLTS. EN ALTA TENSION. 220/127 EN BAJA TENSION. CON BOQUILLA TIPO POZO PARA 200 AMP., OPERACION RADIAL, CONEXION DELTA ESTRELLA, INCLUYE: FLETE, CARGA, DESCARGA, MATERIALES MENORES Y DE CONSUMO, HERRAMIENTAS, EQUIPO, MANO DE OBRA CALIFICADA, PRUEBAS, PUESTA EN SERVICIO, GARANTIAS POR ESCRITO, MANIOBRAS DE CARGA, DESCARGA Y ARRASTRE, EQUIPO DE SEGURIDAD Y PUESTA EN SERVICIO.","PZA","1.0000",0,"CERO PESOS 00/100 M.N.",0,334802]
[880350,"SUMINISTRO E INSTALACION DE ESTRUCTURA DE  TRANSICION AEREO-SUBTERRANEA 23 KV, NORMA CFE (05 TO 07), CONSTA DE 3 CRUCETA PT200, 1 ABRAZADERA 3UH, 4 PLACAS 1PC, 3 CORTACIRCUITOS FUSIBLE CFE-27-100-150-12000, 3 LISTON FUSIBLE, 3 APARTARRAYOS  DE OXIDO METALICO 18 KV, 3 CONECTOR ESTRIBO, 1 CONECTOR PERICO, 3 ALFILER 2A, 3 AISLADOR DE ALFILER 22A-2 CAT P3300, 3 AMARRES DE ALAMBRE FORRADO THW LS CAL 10 AWG, 2 CONECTOR COBRE 2-2, 3 TERMINAL TERMOCONTRACTIL 23 KV CAL 1/0 AWG, 3 CONECTOR EMPALME TENSION MINIMA, 5 KG CABLE DE COBRE DESNUDO CAL 2 AWG, 2 TMO. TUBO CONDUIT PGG.DE 101MM. 1 BOTA TERMOCONTACTIL PARA TUBO DE 101MM, 4 ANILLOS DE FLEJE DE ACERO INOXIDABLE DE 3/4\", 8 SELLOS PARA FLEJE DE 3/4\",  1 CONECTOR CIRCULAR PARA TUBERIAS DE 101MM., INCLUYE:  FLETES MANIOBRAS DE CARGA Y DESCARGA, TRASLADOS, ARRASTRES, ELEVACIONES, CONEXIONES, FIJACION, MATERIALES MENORES, EXCAVACIONES, RELLENOS Y MANO DE OBRA CALIFICADA. ( LOS MATERIALES DEBERAN CONTAR CON PROTOCOLO DE PRUEBA).","PZA","1.0000",0,"CERO PESOS 00/100 M.N.",0,334803]
[880410,"SUMINISTRO Y COLOCACION DE CABLE DE ENERGIA DE ALUMINIO  TIPO \"XLP\"  25 KV. MONOPOLAR, MCA. CONDUMEX, CONDUCTORES MONTERREY O LATINCASA,  CALIBRE 1/0 AWG. NORMA CFE-CPMXLP, ESPECIFICACION E0000-16, EXENTO DE INSPECCION, INCLUYE: FLETE, ELEVACION, CONEXIONES, MATERIALES NECESARIOS PARA SU INSTALACION, HERRAMIENTAS, EQUIPO DE SEGURIDAD, DESPERDICIOS,  Y MANO DE OBRA, A CUALQUIER NIVEL. ( TODOS LOS MATERIALES DEBERAN CONTAR CON PROTOCOLO DE PRUEBAS DE LAPEM)","ML ","90.0000",0,"CERO PESOS 00/100 M.N.",0,334804]
[880607,"SUMINISTRO Y COLOCACION DE REGISTRO DE CONCRETO PRECOLADO PARA MEDIA TENSION PARA BANQUETA TIPO 4, DE 1.50 X 1.50 X 0.90 MTS. NORMA CFE-RMTB-4, CON ARO Y TAPA DE FO. FO. 84-B, INCLUYE: 4 CORREDERAS DE FIERRO GALVANIZADA NORMA CFE-CFG.4 PERNOS GALVANIZADOS NORMA CFE-PCS, 4 MENSULAS NORMA CFE-MCSF DE 25 CM. 4 TACON DE HULE PARA SOPORTE DE CABLE, 8 CINCHOS DE PLASTICO DE 30 CM. 8 BARRENAS DE FIERRO GALVANIZADA DE 3/8\" X 2\" Y TORNILLO DE 3/8\" X 2\", MONTAJE, CONEXION, HERRAMIENTA, EXCAVACION, COLOCACION, ALINEACION, RELLENO, RETIRO DE MATERIAL EXCEDENTE, MANO DE OBRA, FLETES ACARREO DE LOS MATERIALES AL SITIO DE SU UTILIZACION. ( EL MATERIAL DEBERA CONTAR CON PROTOCOLO DE PRUEBAS LAMPEM ).","PZA","1.0000",0,"CERO PESOS 00/100 M.N.",0,334805]
[880659,"SUMINISTRO Y COLOCACIÓN DE REGISTRO DE CONCRETO PRECOLADO PARA MEDIA TENSION CON VENTANA PARA TRANSFORMADOR EN BANQUETA, NORMA CFE-BTIFRMTB3 DE 1.66 X 1.16 X 1.16 MTS., INCLUYE:  1 ARO Y TAPA 84-B, 4 CORREDERA DE FIERRO GALVANIZADA NORMA CFE-CFG, 4 PERNO GALVANIZADO NORMA CFE-PCS, 4 MENSULA NORMA CFE-MCSF DE 25 MM., 4 (CUATRO) TACON DE HULE PARA SOPORTE DE CABLE, 8 (OCHO) CINCHOS DE PLASTICO DE 30 CM., EXCAVACIÓN, COLOCACIÓN, NIVELACIÓN, RELLENO COMPACTADO, HERRAMIENTAS, MATERIALES MENORES Y MANO DE OBRA CALIFICADA. (TODOS LOS MATERIALES DEBERAN CONTAR CON PROTOCOLO DE PRUEBAS DE LAPEM).","PZA","1.0000",0,"CERO PESOS 00/100 M.N.",0,334806]
[880790,"TRAMITE ANTE CFE PARA LA REALIZACION DE OBRAS ESPECIFICAS DE AMPLIACION DE LINEAS DE DISTRIBUCION DE MEDIA TENSION, PARA LA CONEXION ELECTRICA DE PLANTEL EDUCATIVO,  INCLUYE: TRASLADOS, GESTORIA E INDIRECTOS.","PDA","1.0000",0,"CERO PESOS 00/100 M.N.",0,334807]
[880795,"PRUEBAS DE VLF DE BAJA FRECUENCIA A CABLE DE ENERGIA TIPO XLP, PARA OBTENER AUTORIZACION DE ENERGIZAR CONDUCTORES, PRUEBAS EJECUTADAS CON EQUIPO ESPECIALIZADO DE LABORATORIO CERTIFICADO POR LA C.F.E. INCLUYE: EQUIPO, HERRAMIENTAS, TRASLADOS Y MANO DE OBRA.","PDA","1.0000",0,"CERO PESOS 00/100 M.N.",0,334808]
[890019,"SUMINISTRO Y COLOCACION DE CODO DE OPERACION CON CARGA DE 200 AMPERES, 25 KVA. CALIBRE NO. 1/0 AWG. INCLUYE: MATERIALES, MANO DE OBRA ESPECIALIZADA, HERRAMIENTAS Y ACARREOS.","PZA","3.0000",0,"CERO PESOS 00/100 M.N.",0,334809]
[890166,"SUMINISTRO E INSTALACION DE INSERTO PREMOLDEADO, TIPO BUSHING CLASE 25 KV. PARA 200 AMP., OPERACION CON CARGA, MCA ELASTIMOLD O SIMILAR, INCLUYE: MONTAJE, CONEXIÓN, PRUEBAS, HERRAMIENTAS, MANO DE OBRA Y ACARREOS. (EL MATERIAL DEBERA CONTAR CON PROTOCOLO DE PRUEBAS LAPEM).","PZA","3.0000",0,"CERO PESOS 00/100 M.N.",0,334810]
[906248,"TRAMITES Y PAGOS ANTE C.F.E., POR APORTACION REQUERIDA POR LOS KVA EXCEDENTES DEL TRANSFORMADOR, INCLUYE: GESTORIA, PAGOS, TRASLADOS Y HONORARIOS.","KVA","28.0000",0,"CERO PESOS 00/100 M.N.",0,334811]
[919244,"SUMINISTRO E INSTALACION DE ADAPTADOR PARA TIERRAS CALIBRE NO. 3/0 AWG, INCLUYE: MATERIALES, HERRAMIENTA, MANO DE OBRA Y ACARREOS.","PZA","3.0000",0,"CERO PESOS 00/100 M.N.",0,334812]
[928322,"ADECUACION DE LOS PLANOS ELECTRICOS PARA LA CFE EN EL SISTEMA DEPRORED","PZA","1.0000",0,"CERO PESOS 00/100 M.N.",0,334813]
[928360,"SUMINISTRO Y COLOCACION DE INDICADOR DE FALLA DE 200 AMP. A 25 KVA. CALIBRE 1/0 MARCA ELASTIMOLD INCLUYE; MATERIAL DE FIJACION Y MANO DE OBRA.","PZA","3.0000",0,"CERO PESOS 00/100 M.N.",0,334814]
[935256,"SUMINISTRO E INSTALACION DE TUBERIA DE POLIETILENO DE ALTA DENSIDAD (PAD) RD-17 DE 3\" DE DIAMETRO (76 MM), INCLUYE: MATERIALES, HERRAMIENTAS, DESPERDICIOS, FLETE Y ACARREO AL SITIO DE SU INSTALACION, TERMOFUCIONADO DE UNIONES, BAJADO A LA ZANJA Y PRUEBAS.","ML ","25.0000",0,"CERO PESOS 00/100 M.N.",0,334815]
[972048,"SISTEMA DE CONEXION A TIERRA FORMADO POR 6 VARILLAS COPPER WELD DE 5/8\" X 3.00 MTS. CABLE DE COBRE DESNUDO CAL. 4/0 AWG Y SOLDADURA FUNDENTE CADWELL NO. 200, 150 Y 90 INCLUYE; EXCAVACIONES, CONEXIONES, RELLENOS, PARA GARANTIZAR UNA RESISTENCIA A TIERRA DE 15 OHMS EN TIEMPO DE LLUVIAS DE 10 OHMS EN TIEMPO DE ESTIAJE.","PZA","1.0000",0,"CERO PESOS 00/100 M.N.",0,334816]
[972722,"TRÁMITE CON CFE PARA APROBACIÓN DE ACOMETIDA MEDIANTE TRANSICIÓN AÉREO-SUBTERRÁNEA, ELIMINACIÓN DE ACOMETIDA AÉREA DE MEDIA TENSIÓN EXISTENTE, APROBACIÓN DE PROYECTO, COORDINACIÓN DE INTERCALADO DE POSTE, CONEXIÓN, MEDICIÓN. Y REALIZACIÓN DE CONTRATO DE INCREMENTO DE CARGA CON CFE","PZA","1.0000",0,"CERO PESOS 00/100 M.N.",0,334817]
[972823,"DICTAMEN DE VERIFICACION A LAS INSTALACIONES ELECTRICAS DEL PLANTEL (BAJA TENSION). EMITIDO POR UNA UNIDAD DE VERIFICACION APROBADA POR LA SECRETARIA DE ENERGIA Y CON REGISTRO VIGENTE. INCLUYE: ADECUACION DE PLANOS ELECTRICOS, ELABORACION DE MEMORIA DE CALCULO Y  TECNICO DESCRIPTIVA DEL INCREMENTO DE CARGA CON CUADROS DE CARGAS Y DIAGRAMA UNIFILAR PARA REVISION Y APROBACION DE LA UNIDAD VERIFICADORA.","PDA","1.0000",0,"CERO PESOS 00/100 M.N.",0,334818]
[975286,"SUM. Y COL. DE SISTEMA \" K \" PARA NEUTRO CORRIDO 1 PZA VARILLA COPPER WELD 5/8\"X3 MTS, 1 PZA CARGA CADWELD, 5 MTS CABLE DE COBRE DESNUDO CAL 2, INCLUYE : MATERIAL DE FIJACIÓN MANO DE OBRA Y HERRAMIENTA NECESARIA PARA SU CORRECTA INSTALACIÓN.\n","PZA","1.0000",0,"CERO PESOS 00/100 M.N.",0,334819]
[975292,"RECIBIR ARO Y TAPA DE REGISTRO PARA LOSA SUPERIOR CON CONCRETO F'C= 250 KG/CM2, DE 12 CMS. DE ESPESOR, ARMADA CON UNA VARILLA DEL N° 3 A CADA 25 CMS. EN AMBOS SENTIDOS, ACABADO APALILLADO CON BROCHA DE PELO, CIMBRA APARENTE, DECIMBRADO, CURADO, VIBRADO, MANO DE OBRA Y HERRAMIENTA.\n","PZA","2.0000",0,"CERO PESOS 00/100 M.N.",0,334820]
[null,"RESUMEN DE PARTIDAS"]
["MSUP-CON-05780","CONSTRUCCIÓN DE LÍNEA DE MEDIA TENSIÓN, SUBESTACIÓN ELÉCTRICA E INSTALACIONES HIDRÁULICAS EN EDIFICIO “C” Y EN OBRA EXTERIOR EN LA ESCUELA PREPARATORIA REGIONAL DE SAYULA CCT 14UBH0021T, UBICADA EN LA CABECERA MUNICIPAL DE SAYULA, JALISCO.",null,null,null,null,{"$f":"G17","v":"$ 0.00 "}]
["C","EDIFICIO C",null,null,null,null,{"$f":"G18","v":"$ 0.00 "}]
["C.01(410)","CANCELERIA, HERRERIA, ALUMINIO, VIDRIOS Y CHAPAS  ",null,null,null,null,{"$f":"G19","v":"$ 0.00 "}]
["C.02(564)","INSTALACION HIDRAULICA, SANITARIA Y GAS EN EDIF.  ",null,null,null,null,{"$f":"G21","v":"$ 0.00 "}]
["C.03(590)","MUEBLES DE BAÑO Y COCINA                          ",null,null,null,null,{"$f":"G23","v":"$ 0.00 "}]
["02","RED ELECTRICA",null,null,null,null,{"$f":"G25","v":"$ 0.00 "}]
["02.01(511)","INSTALACION ELECTRICA EN OBRA EXTERIOR            ",null,null,null,null,{"$f":"G26","v":"$ 0.00 "}]
[19,"SUBESTACION",null,null,null,null,{"$f":"G58","v":"$ 0.00 "}]
["19.01(520)","SUBESTACION, GENERADORES Y CELDAS SOLARES.        ",null,null,null,null,{"$f":"G59","v":"$ 0.00 "}]
[]
["IMPORTE CON LETRA (IVA INCLUIDO)",null,null,null,null,"SUBTOTAL M.N.",{"$f":"TEXT(G17,  \"$ #,##0.00 ;\")","v":"$ 0.00 "}]
[{"$f":"UPPER(CONVERTIRNUM(ROUND( G17 * 1.16, 2)))","v":"CERO PESOS 00/100 M.N."},null,null,null,null,"IVA M.N.",{"$f":"TEXT(ROUND( G17 * 0.16, 2),  \"$ #,##0.00 ;\")","v":"$ 0.00 "}]
[null,null,null,null,null,"TOTAL M.N.",{"$f":"TEXT(ROUND( G17 * 1.16, 2),  \"$ #,##0.00 ;\")","v":"$ 0.00 "}]